bitfinex/quotes_SOLUSD_20260211
["timestamp","ask_amount","ask_price","bid_price","bid_amount"]
[1770812021061,40.08,81.147,81.125,0.87977248]
[1770812024169,0.48308112,81.146,81.12,0.2]
[1770812024546,0.48308112,81.146,81.121,0.87977248]
[1770812025359,12.32377008,81.144,81.121,0.87977248]
[1770812025565,0.48328996,81.143,81.121,0.87977248]
[1770812028470,12.32407384,81.142,81.121,0.87977248]
[1770812028870,12.80819993,81.142,81.121,0.87977248]
[1770812029667,12.8085037,81.14,81.121,0.87977248]
[1770812031454,12.80848079,81.144,81.121,0.87977248]
[1770812031662,0.48471071,81.143,81.121,0.87977248]
[1770812034361,12.32377008,81.144,81.121,0.87977248]
[1770812034562,0.48530201,81.143,81.121,0.87977248]
[1770812035976,12.32407384,81.142,81.121,0.87977248]
[1770812037276,12.32361821,81.145,81.121,0.87977248]
[1770812037669,12.80947021,81.145,81.121,0.87977248]
[1770812037868,0.48603414,81.144,81.121,0.87977248]
[1770812038803,0.48603414,81.155,81.131,0.85548734]
[1770812039765,0.48621679,81.153,81.121,0.85548734]
[1770812040784,0.48659198,81.149,81.12,0.2]
[1770812040987,0.48659198,81.139,81.12,0.2]
[1770812041182,0.48659198,81.139,81.11,0.2]
[1770812041485,0.28659198,81.129,81.11,0.2]
[1770812041693,0.28659198,81.127,81.11,1.05548734]
[1770812043287,12.61375785,81.126,81.11,1.05548734]
[1770812043474,12.32650444,81.126,81.11,1.05548734]
[1770812043780,0.28725341,81.125,81.11,1.05548734]
[1770812044579,0.28725341,81.125,81.11,0.2]
[1770812044893,0.28725341,81.125,81.11,1e-08]
[1770812045069,40.48,81.125,81.111,0.85548734]
[1770812045271,12.32680834,81.124,81.111,0.85548734]
[1770812047765,12.32680834,81.124,81.11,1e-08]
[1770812047967,0.84193706,81.123,81.11,1e-08]
[1770812048385,0.84193706,81.121,81.11,1e-08]
[1770812049392,0.84193706,81.119,81.11,1e-08]
[1770812050867,0.84193706,81.117,81.11,1e-08]
[1770812051584,0.84193706,81.115,81.1,0.2]
[1770812051782,0.84193706,81.113,81.1,0.2]
[1770812052290,0.84193706,81.111,81.1,0.2]
[1770812053384,40.66,81.11,81.1,0.2]
[1770812056591,40.7,81.109,81.1,0.2]
[1770812057592,40.7,81.109,81.09,0.2]
[1770812057593,0.84193706,81.106,81.09,0.2]
[1770812057774,12.32939203,81.107,81.08,0.2]
[1770812057775,0.84193706,81.099,81.08,0.2]
[1770812057981,0.84193706,81.097,81.08,0.2]
[1770812059477,0.84193706,81.095,81.08,0.2]
[1770812061994,0.88588117,81.093,81.08,0.2]
[1770812063995,0.88588117,81.089,81.07,0.2]
[1770812064184,0.88588117,81.079,81.05,0.81738932]
[1770812064578,3.39910647,81.07,81.05,1e-08]
[1770812064783,0.88588117,81.059,81.04,0.2]
[1770812064986,0.88588117,81.059,81.03,0.2]
[1770812065191,0.88588117,81.059,81.031,0.81738931]
[1770812065395,0.88588117,81.057,81.031,0.81738931]
[1770812065579,0.8781144,81.049,81.03,0.2]
[1770812065975,0.8781144,81.047,81.03,0.2]
[1770812066192,0.8781144,81.079,81.041,0.83056749]
[1770812066389,0.8781144,81.077,81.051,0.83056749]
[1770812066725,0.8781144,81.069,81.041,0.83056749]
[1770812067596,0.8781144,81.067,81.041,0.83056749]
[1770812068183,0.8781144,81.065,81.031,0.83056749]
[1770812068498,0.8781144,81.063,81.031,0.83056749]
[1770812069295,40.88,81.062,81.041,0.83056749]
[1770812070602,12.33638864,81.061,81.041,0.83056749]
[1770812071504,0.8781144,81.06,81.03,0.2]
[1770812071687,0.8781144,81.059,81.03,0.2]
[1770812072089,0.8781144,81.059,81.03,3.59910647]
[1770812072289,0.8781144,81.059,81.03,15.94013899]
[1770812072506,0.8781144,81.059,81.033,12.34059727]
[1770812072709,12.33684522,81.058,81.033,12.34059727]
[1770812073105,0.8781144,81.057,81.033,12.34059727]
[1770812073702,0.8781144,81.057,81.034,0.83056749]
[1770812075104,12.33714962,81.056,81.034,0.83056749]
[1770812075310,13.21526402,81.056,81.034,0.83056749]
[1770812076282,0.8781144,81.055,81.034,0.83056749]
[1770812076686,12.33745404,81.054,81.034,0.83056749]
[1770812076887,0.8781144,81.053,81.034,0.83056749]
[1770812077104,0.8781144,81.051,81.03,0.2]
[1770812078409,12.33806292,81.05,81.03,0.2]
[1770812078709,0.8781144,81.049,81.03,0.2]
[1770812079611,12.33836738,81.048,81.031,0.83056749]
[1770812079816,13.21648178,81.048,81.031,0.83056749]
[1770812080698,41.0,81.052,81.031,0.83056749]
[1770812081218,0.8781144,81.058,81.033,0.83056749]
[1770812081219,12.33697484,81.058,81.033,0.83056749]
[1770812081386,41.08,81.055,81.033,0.83056749]
[1770812083991,53.41731211,81.055,81.033,0.83056749]
[1770812086211,54.29542651,81.055,81.033,0.83056749]
[1770812087718,0.8781144,81.054,81.033,0.83056749]
[1770812089018,0.8781144,81.052,81.033,0.83056749]
[1770812090394,0.87864039,81.05,81.033,0.83056749]
[1770812094021,42.13864039,81.05,81.033,0.83056749]
[1770812094213,0.87864039,81.05,81.033,0.83056749]
[1770812094413,41.26,81.051,81.035,0.82679724]
[1770812094798,40.96034426,81.051,81.036,0.82679724]
[1770812094998,40.96034426,81.051,81.034,12.34049904]
[1770812094999,0.87864039,81.069,81.041,0.82679724]
[1770812095208,0.87864039,81.069,81.036,0.82679724]
[1770812096229,0.87864039,81.069,81.041,0.82679724]
[1770812096400,0.87864039,81.069,81.052,0.82679724]
[1770812096829,12.33532343,81.068,81.052,0.82679724]
[1770812097810,41.26,81.085,81.053,0.82679724]
[1770812097811,0.87864039,81.078,81.053,0.82679724]
[1770812098904,12.33395414,81.077,81.053,0.82679724]
[1770812099100,0.87864039,81.076,81.053,0.82679724]
[1770812100826,0.87864039,81.076,81.047,0.82679724]
[1770812101133,0.87864039,81.068,81.04,0.82679724]
[1770812101330,0.87864039,81.075,81.043,0.82679724]
[1770812101710,0.87864039,81.075,81.051,0.82679724]
[1770812103228,0.87864039,81.073,81.051,0.82679724]
[1770812103415,0.87864039,81.073,81.053,0.82679724]
[1770812104843,0.87864039,81.079,81.061,0.82679724]
[1770812105318,0.87864039,81.077,81.061,0.82679724]
[1770812105632,0.87864039,81.077,81.053,0.82679724]
[1770812107312,0.87864039,81.075,81.053,0.82679724]
[1770812109528,0.87864039,81.075,81.042,30.84820216]
[1770812109529,0.87864039,81.075,81.061,0.82679724]
[1770812109730,0.87864039,81.075,81.055,0.82679724]
[1770812109919,0.87864039,81.073,81.055,0.82679724]
[1770812113231,0.87864039,81.083,81.057,0.82679724]
[1770812113531,0.87864039,81.083,81.061,0.82679724]
[1770812115437,0.87864039,81.083,81.062,12.33623646]
[1770812115737,0.87864039,81.083,81.062,13.1630337]
[1770812118018,0.87864039,81.083,81.063,0.82679724]
[1770812119140,0.87864039,81.081,81.063,0.82679724]
[1770812119639,44.70455167,81.09,81.046,39.86]
[1770812119640,12.33091236,81.097,81.071,0.82679724]
[1770812119851,0.87864039,81.096,81.071,0.82679724]
[1770812120547,12.33228097,81.088,81.065,0.89125025]
[1770812120723,0.85141486,81.087,81.065,0.89125025]
[1770812122735,0.85141486,81.085,81.065,0.89125025]
[1770812122929,0.85141486,81.085,81.07,3.40455167]
[1770812123336,0.85141486,81.085,81.065,0.89125025]
[1770812123938,0.85141486,81.085,81.07,4.29580192]
[1770812124139,0.85141486,81.085,81.071,0.89125025]
[1770812124737,12.33258515,81.086,81.071,0.89125025]
[1770812125039,30.82728091,81.097,81.071,0.89125025]
[1770812125040,12.33099571,81.097,81.081,0.89125025]
[1770812125429,0.85141486,81.096,81.081,0.89125025]
[1770812126638,0.85141486,81.096,81.08,3.40455167]
[1770812126837,0.87395771,81.094,81.076,0.86024459]
[1770812128950,0.23129771,81.094,81.076,0.86024459]
[1770812129645,12.33000012,81.103,81.081,0.86024459]
[1770812130032,12.33000012,81.103,81.077,0.86024459]
[1770812130845,12.33030418,81.101,81.077,0.86024459]
[1770812131026,0.87395771,81.1,81.077,0.86024459]
[1770812131435,0.87395771,81.1,81.08,4.26479626]
[1770812134353,41.42,81.104,81.081,0.86024459]
[1770812134354,0.87395771,81.098,81.081,0.86024459]
[1770812136555,0.87395771,81.089,81.041,0.86024459]
[1770812136855,0.87395771,81.079,81.053,0.86024459]
[1770812137038,0.87395771,81.079,81.052,12.33772873]
[1770812137039,0.87395771,81.087,81.061,0.86024459]
[1770812138134,0.87395771,81.096,81.071,0.86024459]
[1770812139252,0.87395771,81.096,81.073,0.86024459]
[1770812139253,12.33121647,81.095,81.073,0.86024459]
[1770812139452,13.20517418,81.095,81.073,0.86024459]
[1770812140839,0.87395771,81.094,81.073,0.86024459]
[1770812141658,0.87395771,81.092,81.073,0.86024459]
[1770812142537,0.87395771,81.098,81.074,0.86024459]
[1770812142858,0.87395771,81.098,81.08,4.26479626]
[1770812143056,0.87395771,81.098,81.081,0.86024459]
[1770812143759,0.87395771,81.096,81.081,0.86024459]
[1770812144172,0.87395771,81.117,81.091,0.86024459]
[1770812144339,0.87395771,81.121,81.083,0.86024459]
[1770812144539,0.87395771,81.121,81.091,0.86024459]
[1770812145363,0.87395771,81.121,81.1,3.40455167]
[1770812145561,0.87395771,81.121,81.097,0.86024459]
[1770812145746,0.87395771,81.119,81.097,0.86024459]
[1770812147064,0.87395771,81.119,81.084,0.86024459]
[1770812147235,0.87395771,81.119,81.09,3.40455167]
[1770812147432,0.87395771,81.119,81.09,4.26479626]
[1770812148343,0.87395771,81.117,81.091,0.86024459]
[1770812149557,0.87395771,81.115,81.091,0.86024459]
[1770812151241,12.32832803,81.114,81.091,0.86024459]
[1770812152744,13.22613492,81.114,81.091,0.86024459]
[1770812153267,0.89780689,81.113,81.091,0.86024459]
[1770812153654,12.32832803,81.114,81.091,0.86024459]
[1770812153850,12.32832803,81.114,81.092,12.33167266]
[1770812154042,12.32832803,81.114,81.093,0.85943944]
[1770812158878,72.57574736,81.128,81.101,0.85943944]
[1770812158879,0.89780689,81.126,81.101,0.85943944]
[1770812159066,0.89780689,81.126,81.111,0.85943944]
[1770812159576,0.89780689,81.126,81.101,0.85943944]
[1770812160271,0.89780689,81.126,81.102,0.85943944]
[1770812161381,0.89780689,81.124,81.09,3.40081624]
[1770812161582,3.40081624,81.12,81.081,0.85943944]
[1770812161761,0.89780689,81.119,81.081,0.85943944]
[1770812161960,0.89780689,81.119,81.091,0.85943944]
[1770812163390,0.89780689,81.117,81.091,0.85943944]
[1770812165581,0.89780689,81.115,81.091,0.85943944]
[1770812166280,0.89780689,81.115,81.086,0.85943944]
[1770812166866,0.89780689,81.115,81.091,0.85943944]
[1770812167261,0.89780689,81.113,81.091,0.85943944]
[1770812168778,13.22564145,81.118,81.093,0.85943944]
[1770812168984,12.32783456,81.118,81.093,0.85943944]
[1770812169178,12.32783456,81.118,81.101,0.85943944]
[1770812169366,12.32711225,81.122,81.101,0.85943944]
[1770812169768,12.32643169,81.127,81.103,0.85943944]
[1770812170767,0.89780689,81.131,81.103,0.85943944]
[1770812170768,12.3258967,81.13,81.103,0.85943944]
[1770812171294,12.3258967,81.13,81.111,0.85943944]
[1770812172478,0.89780689,81.134,81.111,0.85943944]
[1770812173172,12.32513711,81.135,81.111,0.85943944]
[1770812173367,12.32513711,81.135,81.014,20.68019225]
[1770812173368,12.32463552,81.139,81.121,0.85943944]
[1770812173561,13.22244241,81.139,81.121,0.85943944]
[1770812173763,0.89780689,81.138,81.113,0.85943944]
[1770812174672,12.3248333,81.137,81.113,0.85943944]
[1770812174875,0.89780689,81.136,81.113,0.85943944]
[1770812176884,0.89780689,81.134,81.113,0.85943944]
[1770812178983,3.50081624,81.15,81.093,0.85943944]
[1770812178984,0.89780689,81.129,81.093,0.85943944]
[1770812179783,0.89780689,81.129,81.101,0.85943944]
[1770812179977,0.89780689,81.129,81.092,0.85943944]
[1770812180497,0.89780689,81.129,81.093,0.85958458]
[1770812180991,43.14170199,81.128,81.093,0.85958458]
[1770812181196,0.85188944,81.127,81.093,0.85958458]
[1770812182095,12.32650444,81.126,81.093,0.85958458]
[1770812182289,0.85188944,81.125,81.093,0.85958458]
[1770812184302,0.85188944,81.123,81.093,0.85958458]
[1770812185196,12.32711225,81.122,81.093,0.85958458]
[1770812185500,0.85188944,81.121,81.093,0.85958458]
[1770812187200,0.89110656,81.119,81.083,0.91445058]
[1770812187501,0.89110656,81.109,81.084,0.91445058]
[1770812188482,12.32924002,81.108,81.091,0.91445058]
[1770812189404,13.22034658,81.108,81.091,0.91445058]
[1770812189906,0.89110656,81.107,81.082,0.91445058]
[1770812190610,0.89110656,81.105,81.082,0.91445058]
[1770812191194,0.89110656,81.105,81.075,0.91445058]
[1770812193084,0.89110656,81.099,81.068,0.91445058]
[1770812193289,43.15446833,81.104,81.03,0.2]
[1770812193290,0.89110656,81.079,81.051,0.91445058]
[1770812193904,0.89110656,81.069,81.046,0.91445058]
[1770812195107,0.89110656,81.067,81.046,0.91445058]
[1770812195608,0.89110656,81.067,81.041,52.43929804]
[1770812195609,0.89110656,81.067,81.042,0.91445058]
[1770812197616,0.89110656,81.065,81.042,0.91445058]
[1770812199603,12.3359321,81.064,81.042,0.91445058]
[1770812201831,0.89110656,81.068,81.042,0.91445058]
[1770812202997,0.89110656,81.088,81.051,0.91445058]
[1770812205116,0.89110656,81.086,81.053,0.91445058]
[1770812207425,12.33273725,81.085,81.053,0.91445058]
[1770812207721,0.89110656,81.084,81.053,0.91445058]
[1770812209911,12.33304145,81.083,81.055,0.91445058]
[1770812210119,0.89110656,81.082,81.055,0.91445058]
[1770812212919,0.86652623,81.08,81.055,0.91445058]
[1770812213122,0.86652623,81.079,81.055,0.91445058]
[1770812215231,42.64,81.092,81.061,0.90025122]
[1770812215232,0.86652623,81.091,81.061,0.90025122]
[1770812215727,0.86652623,81.089,81.061,0.90025122]
[1770812217027,0.86652623,81.087,81.063,0.90025122]
[1770812219227,0.86652623,81.085,81.058,0.90025122]
[1770812219824,12.33258515,81.086,81.061,0.90025122]
[1770812220027,13.19911138,81.086,81.061,0.90025122]
[1770812220219,0.86652623,81.085,81.061,0.90025122]
[1770812220420,0.86652623,81.085,81.063,12.33594053]
[1770812220721,0.86652623,81.085,81.064,0.90025122]
[1770812231224,0.86652623,81.079,81.053,0.90025122]
[1770812233022,0.86652623,81.079,81.059,0.90025122]
[1770812233643,0.86652623,81.077,81.059,0.90025122]
[1770812235954,12.64747522,81.18,81.05,43.60399608]
[1770812235955,0.1,81.17,81.07,6.80799216]
[1770812236246,3.40399608,81.14,81.111,0.90025122]
[1770812236452,3.40399608,81.13,81.099,0.90025122]
[1770812237033,3.40399608,81.12,81.099,0.90025122]
[1770812237338,3.40399608,81.12,81.094,0.90025122]
[1770812237642,3.40399608,81.11,81.083,0.90025122]
[1770812237839,12.32908801,81.109,81.083,0.90025122]
[1770812238033,0.3912779,81.108,81.083,0.90025122]
[1770812241052,0.3912779,81.108,81.085,0.94459516]
[1770812246950,15.73294957,81.11,81.079,12.33358899]
[1770812246951,12.32895349,81.11,81.091,0.88553433]
[1770812247254,12.71630405,81.11,81.091,0.88553433]
[1770812247635,0.38735056,81.109,81.091,0.88553433]
[1770812248246,12.32924002,81.108,81.091,0.88553433]
[1770812251764,12.7127028,81.108,81.091,0.88553433]
[1770812252142,12.71049389,81.106,81.091,0.88553433]
[1770812252366,0.38094984,81.105,81.08,0.88553433]
[1770812252659,0.38094984,81.105,81.081,0.88553433]
[1770812258656,12.32954405,81.106,81.08,3.40399608]
[1770812258657,12.32954405,81.106,81.083,0.88553433]
[1770812259276,54.74639749,81.16,81.084,0.88553433]
[1770812259566,0.3725583,81.153,81.131,0.88553433]
[1770812259947,3.40399608,81.14,81.116,0.88553433]
[1770812260144,0.9357016,81.129,81.086,42.42]
[1770812260366,3.50399608,81.16,81.082,12.33319355]
[1770812260367,0.9357016,81.111,81.082,12.33319355]
[1770812260569,0.9357016,81.109,81.077,12.33383884]
[1770812260743,0.9357016,81.109,81.071,30.83680857]
[1770812261140,0.9357016,81.109,81.08,3.40399608]
[1770812261968,0.9357016,81.108,81.08,3.40399608]
[1770812262178,0.9357016,81.108,81.081,0.88553433]
[1770812263048,0.9357016,81.108,81.082,0.88553433]
[1770812266075,0.9357016,81.112,81.084,0.88553433]
[1770812268667,12.32878401,81.111,81.084,0.88553433]
[1770812268873,0.9357016,81.11,81.084,0.88553433]
[1770812270261,12.32747434,81.12,81.091,0.88553433]
[1770812270575,0.89339463,81.119,81.091,0.88553433]
[1770812271353,0.89339463,81.119,81.092,12.33167266]
[1770812271555,0.89339463,81.117,81.093,0.92167204]
[1770812273244,0.89339463,81.117,81.08,3.40399608]
[1770812273245,12.32451838,81.14,81.111,0.92167204]
[1770812273449,12.32451838,81.14,81.094,12.33136853]
[1770812273450,0.89339463,81.152,81.121,0.92167204]
[1770812273679,12.32153948,81.159,81.131,0.92167204]
[1770812273863,12.3185751,81.179,81.151,0.92167204]
[1770812275370,12.3185751,81.179,81.14,3.40399608]
[1770812275371,12.3185751,81.179,81.153,0.92167204]
[1770812275575,12.3185751,81.179,81.152,12.3225552]
[1770812275576,0.89339463,81.177,81.152,12.3225552]
[1770812275757,0.89339463,81.177,81.14,34.214776]
[1770812276270,0.89339463,81.169,81.132,42.12]
[1770812277265,0.89339463,81.169,81.14,12.32428098]
[1770812277470,12.32012615,81.168,81.142,12.32407384]
[1770812277670,0.89339463,81.167,81.142,13.24574588]
[1770812277849,0.89339463,81.167,81.142,12.32407384]
[1770812278055,0.89339463,81.167,81.143,0.92167204]
[1770812279477,12.32012615,81.168,81.143,0.92167204]
[1770812280274,0.1,81.17,81.145,0.92167204]
[1770812280477,0.1,81.17,81.151,0.92167204]
[1770812284394,0.1,81.17,81.153,0.92167204]
[1770812284783,0.99339463,81.17,81.153,0.92167204]
[1770812284957,0.99339463,81.17,81.148,12.32306506]
[1770812285289,0.89339463,81.169,81.143,0.92167204]
[1770812286287,0.89339463,81.167,81.143,0.92167204]
[1770812286780,0.89339463,81.167,81.142,12.32398701]
[1770812286781,0.89339463,81.149,81.128,0.92167204]
[1770812286969,0.89339463,81.149,81.12,12.32739923]
[1770812287364,0.89339463,81.149,81.12,13.24907127]
[1770812289575,0.89339463,81.147,81.12,13.24907127]
[1770812292114,0.89339463,81.139,81.105,42.94167204]
[1770812292408,0.89339463,81.139,81.105,0.92167204]
[1770812293373,0.89339463,81.139,81.1,3.39745939]
[1770812293374,0.89339463,81.137,81.107,0.92167204]
[1770812296297,12.32349016,81.146,81.111,0.92167204]
[1770812297399,12.32349016,81.146,81.113,0.92167204]
[1770812297780,13.21688479,81.146,81.113,0.92167204]
[1770812298296,0.89339463,81.145,81.113,0.92167204]
[1770812300679,0.9273235,81.153,81.121,0.93787252]
[1770812301092,0.9273235,81.149,81.115,0.93787252]
[1770812304796,0.9273235,81.147,81.117,0.93787252]
[1770812306101,0.94224372,81.145,81.119,0.93395045]
[1770812309499,0.94224372,81.139,81.119,0.93395045]
[1770812309693,0.94224372,81.139,81.12,12.32741617]
[1770812309894,0.94224372,81.139,81.121,0.93395045]
[1770812311192,0.94224372,81.144,81.123,0.93395045]
[1770812312496,0.94224372,81.144,81.125,0.93395045]
[1770812321097,0.94224372,81.142,81.12,0.93395045]
[1770812323601,0.94224372,81.142,81.121,13.26121466]
[1770812323805,0.94224372,81.142,81.122,0.93395045]
[1770812334601,0.9271352,81.129,81.085,0.8739765]
[1770812334796,0.9271352,81.099,81.078,0.8739765]
[1770812336123,0.9271352,81.099,81.046,33.71032502]
[1770812336124,0.9271352,81.129,81.091,0.8739765]
[1770812336327,0.9271352,81.129,81.101,0.8739765]
[1770812336529,0.9271352,81.127,81.101,0.8739765]
[1770812337524,0.9271352,81.127,81.103,0.8739765]
[1770812338927,12.32650444,81.126,81.103,0.8739765]
[1770812339718,0.9271352,81.149,81.121,0.8739765]
[1770812339912,0.9271352,81.149,81.13,3.40022193]
[1770812340321,0.9271352,81.149,81.129,0.8739765]
[1770812341020,0.9271352,81.139,81.1,0.8739765]
[1770812341230,0.9271352,81.123,81.1,0.8739765]
[1770812342304,0.9271352,81.121,81.1,0.8739765]
[1770812342522,4.32735713,81.12,81.1,0.8739765]
[1770812343130,0.9271352,81.119,81.087,12.33240098]
[1770812343632,0.9271352,81.119,81.087,13.20637748]
[1770812343931,0.9271352,81.109,81.087,13.20637748]
[1770812344310,12.32846317,81.114,81.088,0.8739765]
[1770812344509,13.25559837,81.114,81.088,0.8739765]
[1770812345426,0.9271352,81.118,81.091,0.8739765]
[1770812346426,13.25394946,81.124,81.093,0.8739765]
[1770812346608,0.9271352,81.123,81.093,0.8739765]
[1770812346929,3.40022193,81.12,81.093,0.8739765]
[1770812347111,0.9271352,81.119,81.093,0.8739765]
[1770812347617,0.9271352,81.119,81.095,0.8739765]
[1770812349729,12.32772011,81.118,81.095,0.8739765]
[1770812349921,0.9271352,81.117,81.095,0.8739765]
[1770812350309,0.9271352,81.117,81.088,0.8739765]
[1770812352118,0.9271352,81.109,81.077,0.8739765]
[1770812352324,0.9271352,81.109,81.08,0.8739765]
[1770812355036,0.9271352,81.107,81.08,0.8739765]
[1770812356232,0.9271352,81.107,81.081,0.8739765]
[1770812356828,0.9271352,81.107,81.082,0.8739765]
[1770812357838,12.32954405,81.106,81.084,0.8739765]
[1770812359249,30.81672382,81.125,81.091,0.8739765]
[1770812359539,0.9271352,81.148,81.111,0.8739765]
[1770812359927,0.9271352,81.146,81.113,0.8739765]
[1770812360537,0.9271352,81.146,81.121,0.90443862]
[1770812360740,12.32281778,81.151,81.131,0.90443862]
[1770812361548,0.90845921,81.15,81.131,0.90443862]
[1770812363047,44.42,81.154,81.131,0.90443862]
[1770812363243,30.80140837,81.166,81.13,3.40022193]
[1770812363244,0.90845921,81.166,81.133,0.90443862]
[1770812363448,0.90845921,81.166,81.141,0.90443862]
[1770812364227,13.22896301,81.166,81.141,0.90443862]
[1770812364644,0.90845921,81.165,81.141,0.90443862]
[1770812365842,12.32073333,81.164,81.141,0.90443862]
[1770812367858,0.92336781,81.164,81.141,0.90443862]
[1770812370731,13.24416619,81.164,81.141,0.90443862]
[1770812373260,0.92336781,81.163,81.141,0.90443862]
[1770812374335,0.92336781,81.163,81.142,0.88497141]
[1770812377353,0.92336781,81.169,81.144,0.88497141]
[1770812377549,0.92336781,81.169,81.15,3.40022193]
[1770812377744,0.92336781,81.169,81.151,0.88497141]
[1770812385459,0.92336781,81.167,81.14,0.88497141]
[1770812385649,0.92336781,81.167,81.141,0.88497141]
[1770812386751,0.92336781,81.167,81.144,0.88497141]
[1770812389264,0.92336781,81.165,81.15,3.40022193]
[1770812390472,0.92336781,81.165,81.148,0.88497141]
[1770812392874,0.88617035,81.163,81.148,0.88497141]
[1770812394180,0.88617035,81.161,81.142,0.8906367]
[1770812400582,0.88617035,81.161,81.143,12.32392196]
[1770812400784,0.88617035,81.165,81.15,4.28742488]
[1770812401086,0.88617035,81.163,81.15,0.8906367]
[1770812401476,0.88617035,81.163,81.141,0.8906367]
[1770812402269,0.88617035,81.163,81.143,0.8906367]
[1770812402468,0.88617035,81.163,81.138,13.21516996]
[1770812402689,0.88617035,81.163,81.138,12.32453326]
[1770812402865,0.88617035,81.163,81.138,13.21516996]
[1770812403069,0.88617035,81.163,81.141,12.32409325]
[1770812403576,0.88617035,81.163,81.142,0.8906367]
[1770812410289,0.88617035,81.163,81.14,3.39678818]
[1770812410290,0.88617035,81.163,81.144,0.8906367]
[1770812414589,0.1,81.17,81.144,0.8906367]
[1770812414902,0.88617035,81.169,81.146,0.8906367]
[1770812417301,0.88617035,81.169,81.147,12.32331447]
[1770812417684,0.88617035,81.169,81.148,0.8906367]
[1770812418406,0.88617035,81.169,81.149,12.32301075]
[1770812418697,0.88617035,81.169,81.15,0.8906367]
[1770812421706,0.88617035,81.169,81.151,12.32270705]
[1770812421901,0.1,81.18,81.161,0.86337545]
[1770812422103,12.31390609,81.209,81.171,0.86337545]
[1770812422296,12.31390609,81.209,81.181,0.86337545]
[1770812423089,43.09867132,81.209,81.17,3.39678818]
[1770812423307,43.09867132,81.209,81.171,0.86337545]
[1770812423801,43.09867132,81.209,81.173,0.86337545]
[1770812424012,0.85150174,81.208,81.173,0.86337545]
[1770812425401,0.85150174,81.208,81.18,3.39678818]
[1770812425604,0.85150174,81.208,81.181,0.86337545]
[1770812426105,0.86821721,81.206,81.181,0.86337545]
[1770812427203,0.86821721,81.206,81.183,0.86835409]
[1770812428987,0.86821721,81.206,81.184,12.31769806]
[1770812430204,0.86821721,81.206,81.185,0.86835409]
[1770812438625,0.96821721,81.21,81.187,0.86835409]
[1770812439201,0.96821721,81.21,81.18,3.39678818]
[1770812440315,0.96821721,81.21,81.18,34.19252575]
[1770812440519,0.96821721,81.21,81.181,12.31815326]
[1770812441115,0.96821721,81.21,81.182,0.86835409]
[1770812441423,0.1,81.22,81.201,0.86835409]
[1770812441609,0.1,81.22,81.211,0.86835409]
[1770812443026,0.1,81.22,81.212,12.31345121]
[1770812443199,0.1,81.22,81.212,13.1818053]
[1770812443826,0.1,81.24,81.213,0.86835409]
[1770812444123,0.1,81.24,81.212,12.31345121]
[1770812444124,0.1,81.24,81.231,0.86835409]
[1770812444302,0.1,81.24,81.233,0.86835409]
[1770812444500,0.1,81.27,81.235,0.86835409]
[1770812444706,0.1,81.27,81.241,0.86835409]
[1770812444905,0.1,81.27,81.236,41.7]
[1770812444906,0.1,81.27,81.25,4.26514227]
[1770812445106,0.1,81.27,81.251,0.86835409]
[1770812446431,0.1,81.28,81.253,0.86835409]
[1770812446608,0.1,81.28,81.261,0.86835409]
[1770812447315,0.86821721,81.279,81.245,0.86835409]
[1770812447521,0.86821721,81.269,81.244,22.48]
[1770812447825,0.86821721,81.269,81.246,12.30823212]
[1770812448033,0.86821721,81.269,81.249,12.30772826]
[1770812448226,0.96821721,81.28,81.253,0.86835409]
[1770812448432,0.1,81.28,81.261,0.86835409]
[1770812448930,0.1,81.28,81.271,0.86835409]
[1770812449311,0.1,81.3,81.273,0.86835409]
[1770812449511,0.1,81.3,81.291,0.86835409]
[1770812449714,0.86821721,81.319,81.291,0.86835409]
[1770812450126,12.29751336,81.318,81.291,0.86835409]
[1770812450334,0.1,81.32,81.301,0.93580315]
[1770812450711,0.1,81.32,81.311,0.93580315]
[1770812450914,0.1,81.33,81.311,0.93580315]
[1770812452051,0.1,81.34,81.321,0.93580315]
[1770812452213,0.89313932,81.358,81.331,0.93580315]
[1770812452410,0.89313932,81.368,81.342,0.93580315]
[1770812452637,0.89313932,81.368,81.35,3.39678818]
[1770812453039,0.89313932,81.367,81.332,41.7]
[1770812453344,0.89313932,81.367,81.331,0.93580315]
[1770812453853,0.89313932,81.367,81.34,3.39678818]
[1770812454051,0.89313932,81.367,81.331,13.23112377]
[1770812454229,0.89313932,81.367,81.334,13.23064728]
[1770812454426,0.89313932,81.365,81.34,3.39678818]
[1770812455440,0.89313932,81.365,81.35,3.39678818]
[1770812456355,0.89313932,81.365,81.34,4.33259133]
[1770812456543,0.89313932,81.365,81.342,0.93580315]
[1770812456956,12.28954551,81.37,81.331,0.93580315]
[1770812456957,0.89313932,81.363,81.331,0.93580315]
[1770812457250,12.29044786,81.364,81.331,0.93580315]
[1770812457251,0.89313932,81.359,81.331,0.93580315]
[1770812457746,0.89313932,81.359,81.318,30.74339445]
[1770812457747,0.89313932,81.349,81.318,0.93580315]
[1770812457950,0.89313932,81.349,81.32,15.69373545]
[1770812458152,0.89313932,81.354,81.33,3.39678818]